{"text_format":"1","workbook":"xlsx","n_sheets":5,"sheets":["Home","EH Domestic - BA","EH MM","EHCA Calculator","Sheet1"],"not_rendered":{"charts":0,"images":9,"macros":1,"external_links":0,"defined_names":0,"comments":0,"pivot_tables":0},"unopened":[],"bounds":{"document_bytes":16777216,"sheet_cells":100000,"rows_first":2000,"rows_last":500,"rows_between":2000,"halvings":0,"cell_chars":16384,"cell_head_chars":4096},"cells_cut":0,"cells_raw":0,"read":"whole","date_system":"1900"}

{"sheet":"Home","index":0,"n_rows":3,"n_cols":2,"rows_kept":3,"cut":false,"hidden":false,"merged":[]}
[]
[]
[null,"Select your policy:"]

{"sheet":"EH Domestic - BA","index":1,"n_rows":73,"n_cols":18,"rows_kept":73,"cut":false,"hidden":true,"merged":[[21,9,22,13]]}
[]
[]
[]
[]
[]
[]
[]
[]
[null,"POLICY MANAGEMENT TIMELINE"]
[null,"Protracted Default Claim"]
[]
[null,null,null,null,null,null,null,null,null,null,null,null,null,null,null,null,"-","-"]
[null,null,null,null,null,null,null,null,null,null,null,null,null,null,null,null,"2012-01-01","2012-02-15"]
[null,null,"Please enter SHIPPING DATE:",null,null,null,null,null,"mm/dd/yy","*Assuming Shipping and Invoicing date are the same.",null,null,null,null,null,null,"2012-02-01","2012-03-15"]
[null,null,null,null,null,null,null,null,null,null,null,null,null,null,null,null,"2012-03-01","2012-04-15"]
[null,null,"Enter Invoice Terms of Sale (TOS):",null,null,null,null,null,"days",{"$f":"IF(H16=\"\",\"\",\"Invoice Due Date:\")","v":""},{"$f":"IF(J16=\"\",\"\",H14+H16)","v":""},null,null,null,null,null,"2012-04-01","2012-05-15"]
[null,null,null,null,null,null,null,null,null,null,null,null,null,null,null,null,"2012-05-01","2012-06-15"]
[null,null,"File Past Due Report:",null,null,null,null,{"$f":"IF(H16=0,\"-\",H14+H16+60)","v":"-"},null,{"$f":"IF(H18=\"-\",\"\",\"*A Past Due has to be reported if the invoice is over 60 days and over $10,000 past due.\")","v":""},null,null,null,null,null,null,"2012-06-01","2012-07-15"]
[null,null,null,null,null,null,null,null,null,null,null,null,null,null,null,null,"2012-07-01","2012-08-15"]
[null,null,"Claim Notification Period deadline:",null,null,null,null,{"$f":"IF(H18=\"-\",\"-\",IF(H16>90,H14+H16+90,H14+180))","v":"-"},null,{"$f":"IF(H20=\"-\",\"\",\"*Deadline is 90 days from Due Date or 180 days from Shipment, whichever is greater.\")","v":""},null,null,null,null,null,null,"2012-08-01","2012-09-15"]
[null,null,null,null,null,null,null,null,null,null,null,null,null,null,null,null,"2012-09-01","2012-10-15"]
[null,null,"Estimated Claim Settlement Date:",null,null,null,null,{"$f":"IF(H20=\"-\",\"-\",H20+60)","v":"-"},{"$f":"VLOOKUP(#REF!,Sheet1!H3:I232,2,FALSE)","v":{"$error":"#REF!"}},{"$f":"IF(H22=\"-\",\"\",\"*This Settlement date is calculated if claim is processed on the last day (deadline). Claims are usually settled 60 days from the complete submission.\")","v":""},null,null,null,null,null,null,"2012-10-01","2012-11-15"]
[null,null,null,null,null,null,null,null,null,null,null,null,null,null,null,null,"2012-11-01","2012-12-15"]
[null,null,null,null,null,null,null,null,null,null,null,null,null,null,null,null,"2012-12-01","2013-01-15"]
[null,"If you have questions about your policy, please contact your servicing team",null,null,null,null,null,null,null,null,null,null,null,null,null,null,"2013-01-01","2013-02-15"]
[null,null,null,null,null,null,null,null,null,null,null,null,null,null,null,null,"2013-02-01","2013-03-15"]
[null,null,null,null,null,null,null,null,null,null,null,null,null,null,null,null,"2013-03-01","2013-04-15"]
[null,null,null,null,null,null,null,null,null,null,null,null,null,null,null,null,"2013-04-01","2013-05-15"]
[null,null,null,null,null,null,null,null,null,null,null,null,null,null,null,null,"2013-05-01","2013-06-15"]
[null,null,null,null,null,null,null,null,null,null,null,null,null,null,null,null,"2013-06-01","2013-07-15"]
[null,null,null,null,null,null,null,null,null,null,null,null,null,null,null,null,"2013-07-01","2013-08-15"]
[null,null,null,null,null,null,null,null,null,null,null,null,null,null,null,null,"2013-08-01","2013-09-15"]
[null,null,null,null,null,null,null,null,null,null,null,null,null,null,null,null,"2013-09-01","2013-10-15"]
[null,null,null,null,null,null,null,null,null,null,null,null,null,null,null,null,"2013-10-01","2013-11-15"]
[null,null,null,null,null,null,null,null,null,null,null,null,null,null,null,null,"2013-11-01","2013-12-15"]
[null,null,null,null,null,null,null,null,null,null,null,null,null,null,null,null,"2013-12-01","2014-01-15"]
[null,null,null,null,null,null,null,null,null,null,null,null,null,null,null,null,"2014-01-01","2014-02-15"]
[null,null,null,null,null,null,null,null,null,null,null,null,null,null,null,null,"2014-02-01","2014-03-15"]
[null,null,null,null,null,null,null,null,null,null,null,null,null,null,null,null,"2014-03-01","2014-04-15"]
[null,null,null,null,null,null,null,null,null,null,null,null,null,null,null,null,"2014-04-01","2014-05-15"]
[null,null,null,null,null,null,null,null,null,null,null,null,null,null,null,null,"2014-05-01","2014-06-15"]
[null,null,null,null,null,null,null,null,null,null,null,null,null,null,null,null,"2014-06-01","2014-07-15"]
[null,null,null,null,null,null,null,null,null,null,null,null,null,null,null,null,"2014-07-01","2014-08-15"]
[null,null,null,null,null,null,null,null,null,null,null,null,null,null,null,null,"2014-08-01","2014-09-15"]
[null,null,null,null,null,null,null,null,null,null,null,null,null,null,null,null,"2014-09-01","2014-10-15"]
[null,null,null,null,null,null,null,null,null,null,null,null,null,null,null,null,"2014-10-01","2014-11-15"]
[null,null,null,null,null,null,null,null,null,null,null,null,null,null,null,null,"2014-11-01","2014-12-15"]
[null,null,null,null,null,null,null,null,null,null,null,null,null,null,null,null,"2014-12-01","2015-01-15"]
[null,null,null,null,null,null,null,null,null,null,null,null,null,null,null,null,"2015-01-01","2015-02-15"]
[null,null,null,null,null,null,null,null,null,null,null,null,null,null,null,null,"2015-02-01","2015-03-15"]
[null,null,null,null,null,null,null,null,null,null,null,null,null,null,null,null,"2015-03-01","2015-04-15"]
[null,null,null,null,null,null,null,null,null,null,null,null,null,null,null,null,"2015-04-01","2015-05-15"]
[null,null,null,null,null,null,null,null,null,null,null,null,null,null,null,null,"2015-05-01","2015-06-15"]
[null,null,null,null,null,null,null,null,null,null,null,null,null,null,null,null,"2015-06-01","2015-07-15"]
[null,null,null,null,null,null,null,null,null,null,null,null,null,null,null,null,"2015-07-01","2015-08-15"]
[null,null,null,null,null,null,null,null,null,null,null,null,null,null,null,null,"2015-08-01","2015-09-15"]
[null,null,null,null,null,null,null,null,null,null,null,null,null,null,null,null,"2015-09-01","2015-10-15"]
[null,null,null,null,null,null,null,null,null,null,null,null,null,null,null,null,"2015-10-01","2015-11-15"]
[null,null,null,null,null,null,null,null,null,null,null,null,null,null,null,null,"2015-11-01","2015-12-15"]
[null,null,null,null,null,null,null,null,null,null,null,null,null,null,null,null,"2015-12-01","2016-01-15"]
[null,null,null,null,null,null,null,null,null,null,null,null,null,null,null,null,"2016-01-01","2016-02-15"]
[null,null,null,null,null,null,null,null,null,null,null,null,null,null,null,null,"2016-02-01","2016-03-15"]
[null,null,null,null,null,null,null,null,null,null,null,null,null,null,null,null,"2016-03-01","2016-04-15"]
[null,null,null,null,null,null,null,null,null,null,null,null,null,null,null,null,"2016-04-01","2016-05-15"]
[null,null,null,null,null,null,null,null,null,null,null,null,null,null,null,null,"2016-05-01","2016-06-15"]
[null,null,null,null,null,null,null,null,null,null,null,null,null,null,null,null,"2016-06-01","2016-07-15"]
[null,null,null,null,null,null,null,null,null,null,null,null,null,null,null,null,"2016-07-01","2016-08-15"]
[null,null,null,null,null,null,null,null,null,null,null,null,null,null,null,null,"2016-08-01","2016-09-15"]
[null,null,null,null,null,null,null,null,null,null,null,null,null,null,null,null,"2016-09-01","2016-10-15"]
[null,null,null,null,null,null,null,null,null,null,null,null,null,null,null,null,"2016-10-01","2016-11-15"]
[null,null,null,null,null,null,null,null,null,null,null,null,null,null,null,null,"2016-11-01","2016-12-15"]
[null,null,null,null,null,null,null,null,null,null,null,null,null,null,null,null,"2016-12-01","2017-01-15"]
[null,null,null,null,null,null,null,null,null,null,null,null,null,null,null,null,"2017-01-01","date range exceeded"]

{"sheet":"EH MM","index":2,"n_rows":73,"n_cols":18,"rows_kept":73,"cut":false,"hidden":true,"merged":[[18,8,20,8],[20,9,22,13]]}
[]
[]
[]
[]
[]
[]
[null,"POLICY MANAGEMENT TIMELINE"]
[null,"Protracted Default Claim"]
[]
[]
[]
[null,null,"Please enter SHIPPING DATE:",null,null,null,null,null,"mm/dd/yy","*Assuming Shipping and Invoicing date are the same.",null,null,null,null,null,null,"-","-"]
[null,null,null,null,null,null,null,null,null,null,null,null,null,null,null,null,"2012-01-01","2012-02-15"]
[null,null,"Enter Invoice Terms of Sale (TOS):",null,null,null,null,null,"days",{"$f":"IF(H14=\"\",\"\",\"Invoice Due Date:\")","v":""},{"$f":"IF(J14=\"\",\"\",H12+H14)","v":""},null,null,null,null,null,"2012-02-01","2012-03-15"]
[null,null,null,null,null,null,null,null,null,null,null,null,null,null,null,null,"2012-03-01","2012-04-15"]
[null,null,"File Past Due Report:",null,null,null,null,{"$f":"IF(H14=0,\"-\",H12+H14+60)","v":"-"},null,{"$f":"IF(H16=\"-\",\"\",\"*A Past Due has to be reported if the invoice is over 60 days and over $10,000 past due.\")","v":""},null,null,null,null,null,null,"2012-04-01","2012-05-15"]
[null,null,null,null,null,null,null,null,null,null,null,null,null,null,null,null,"2012-05-01","2012-06-15"]
[null,null,"Claim Notification Period deadline:",null,null,null,null,{"$f":"IF(H16=\"-\",\"-\",IF(H14>90,H12+H14+90,H12+180))","v":"-"},null,{"$f":"IF(H18=\"-\",\"\",\"*Deadline to file a claim is 90 days from Due Date or 180 days from Shipment, whichever is greater.\")","v":""},null,null,null,null,null,null,"2012-06-01","2012-07-15"]
[null,null,null,null,null,null,null,null,"select debtor's country\nfrom the dropdown menu",null,null,null,null,null,null,null,"2012-07-01","2012-08-15"]
[null,null,"Select the debtor's country:",null,null,null,null,null,null,null,null,null,null,null,null,null,"2012-08-01","2012-09-15"]
[null,null,null,null,null,null,null,null,null,{"$f":"IF(H22=\"-\",\"\",\"*This Settlement date is calculated as if claim was processed on the last day (deadline). Claims are usually settled 60 days from the complete submission plus Country Waiting Period.\")","v":""},null,null,null,null,null,null,"2012-09-01","2012-10-15"]
[null,null,"Estimated Claim Settlement Date:",null,null,null,null,{"$f":"IF(ISERROR(H18+I22+60),\"-\",H18+I22+60)","v":"-"},{"$f":"VLOOKUP(H20,Sheet1!H3:I243,2,FALSE)","v":{"$error":"#N/A"}},null,null,null,null,null,null,null,"2012-10-01","2012-11-15"]
[null,null,null,null,null,null,null,null,null,null,null,null,null,null,null,null,"2012-11-01","2012-12-15"]
[null,null,null,null,null,null,null,null,null,null,null,null,null,null,null,null,"2012-12-01","2013-01-15"]
[null,"If you have questions about your policy, please contact your servicing team",null,null,null,null,null,null,null,null,null,null,null,null,null,null,"2013-01-01","2013-02-15"]
[null,null,null,null,null,null,null,null,null,null,null,null,null,null,null,null,"2013-02-01","2013-03-15"]
[null,null,null,null,null,null,null,null,null,null,null,null,null,null,null,null,"2013-03-01","2013-04-15"]
[null,null,null,null,null,null,null,null,null,null,null,null,null,null,null,null,"2013-04-01","2013-05-15"]
[null,null,null,null,null,null,null,null,null,null,null,null,null,null,null,null,"2013-05-01","2013-06-15"]
[null,null,null,null,null,null,null,null,null,null,null,null,null,null,null,null,"2013-06-01","2013-07-15"]
[null,null,null,null,null,null,null,null,null,null,null,null,null,null,null,null,"2013-07-01","2013-08-15"]
[null,null,null,null,null,null,null,null,null,null,null,null,null,null,null,null,"2013-08-01","2013-09-15"]
[null,null,null,null,null,null,null,null,null,null,null,null,null,null,null,null,"2013-09-01","2013-10-15"]
[null,null,null,null,null,null,null,null,null,null,null,null,null,null,null,null,"2013-10-01","2013-11-15"]
[null,null,null,null,null,null,null,null,null,null,null,null,null,null,null,null,"2013-11-01","2013-12-15"]
[null,null,null,null,null,null,null,null,null,null,null,null,null,null,null,null,"2013-12-01","2014-01-15"]
[null,null,null,null,null,null,null,null,null,null,null,null,null,null,null,null,"2014-01-01","2014-02-15"]
[null,null,null,null,null,null,null,null,null,null,null,null,null,null,null,null,"2014-02-01","2014-03-15"]
[null,null,null,null,null,null,null,null,null,null,null,null,null,null,null,null,"2014-03-01","2014-04-15"]
[null,null,null,null,null,null,null,null,null,null,null,null,null,null,null,null,"2014-04-01","2014-05-15"]
[null,null,null,null,null,null,null,null,null,null,null,null,null,null,null,null,"2014-05-01","2014-06-15"]
[null,null,null,null,null,null,null,null,null,null,null,null,null,null,null,null,"2014-06-01","2014-07-15"]
[null,null,null,null,null,null,null,null,null,null,null,null,null,null,null,null,"2014-07-01","2014-08-15"]
[null,null,null,null,null,null,null,null,null,null,null,null,null,null,null,null,"2014-08-01","2014-09-15"]
[null,null,null,null,null,null,null,null,null,null,null,null,null,null,null,null,"2014-09-01","2014-10-15"]
[null,null,null,null,null,null,null,null,null,null,null,null,null,null,null,null,"2014-10-01","2014-11-15"]
[null,null,null,null,null,null,null,null,null,null,null,null,null,null,null,null,"2014-11-01","2014-12-15"]
[null,null,null,null,null,null,null,null,null,null,null,null,null,null,null,null,"2014-12-01","2015-01-15"]
[null,null,null,null,null,null,null,null,null,null,null,null,null,null,null,null,"2015-01-01","2015-02-15"]
[null,null,null,null,null,null,null,null,null,null,null,null,null,null,null,null,"2015-02-01","2015-03-15"]
[null,null,null,null,null,null,null,null,null,null,null,null,null,null,null,null,"2015-03-01","2015-04-15"]
[null,null,null,null,null,null,null,null,null,null,null,null,null,null,null,null,"2015-04-01","2015-05-15"]
[null,null,null,null,null,null,null,null,null,null,null,null,null,null,null,null,"2015-05-01","2015-06-15"]
[null,null,null,null,null,null,null,null,null,null,null,null,null,null,null,null,"2015-06-01","2015-07-15"]
[null,null,null,null,null,null,null,null,null,null,null,null,null,null,null,null,"2015-07-01","2015-08-15"]
[null,null,null,null,null,null,null,null,null,null,null,null,null,null,null,null,"2015-08-01","2015-09-15"]
[null,null,null,null,null,null,null,null,null,null,null,null,null,null,null,null,"2015-09-01","2015-10-15"]
[null,null,null,null,null,null,null,null,null,null,null,null,null,null,null,null,"2015-10-01","2015-11-15"]
[null,null,null,null,null,null,null,null,null,null,null,null,null,null,null,null,"2015-11-01","2015-12-15"]
[null,null,null,null,null,null,null,null,null,null,null,null,null,null,null,null,"2015-12-01","2016-01-15"]
[null,null,null,null,null,null,null,null,null,null,null,null,null,null,null,null,"2016-01-01","2016-02-15"]
[null,null,null,null,null,null,null,null,null,null,null,null,null,null,null,null,"2016-02-01","2016-03-15"]
[null,null,null,null,null,null,null,null,null,null,null,null,null,null,null,null,"2016-03-01","2016-04-15"]
[null,null,null,null,null,null,null,null,null,null,null,null,null,null,null,null,"2016-04-01","2016-05-15"]
[null,null,null,null,null,null,null,null,null,null,null,null,null,null,null,null,"2016-05-01","2016-06-15"]
[null,null,null,null,null,null,null,null,null,null,null,null,null,null,null,null,"2016-06-01","2016-07-15"]
[null,null,null,null,null,null,null,null,null,null,null,null,null,null,null,null,"2016-07-01","2016-08-15"]
[null,null,null,null,null,null,null,null,null,null,null,null,null,null,null,null,"2016-08-01","2016-09-15"]
[null,null,null,null,null,null,null,null,null,null,null,null,null,null,null,null,"2016-09-01","2016-10-15"]
[null,null,null,null,null,null,null,null,null,null,null,null,null,null,null,null,"2016-10-01","2016-11-15"]
[null,null,null,null,null,null,null,null,null,null,null,null,null,null,null,null,"2016-11-01","2016-12-15"]
[null,null,null,null,null,null,null,null,null,null,null,null,null,null,null,null,"2016-12-01","2017-01-15"]
[null,null,null,null,null,null,null,null,null,null,null,null,null,null,null,null,"2017-01-01","date range exceeded"]

{"sheet":"EHCA Calculator","index":3,"n_rows":73,"n_cols":18,"rows_kept":73,"cut":false,"hidden":true,"merged":[[20,9,22,9],[16,10,17,13],[22,10,24,13],[19,10,20,13]]}
[]
[]
[]
[]
[]
[]
[null,null,"POLICY MANAGEMENT TIMELINE"]
[null,null,"Protracted Default Claim"]
[]
[]
[]
[null,null,null,"Please enter a DATE OF SUPPLY:",null,null,null,null,null,"mm/dd/yy","*Assuming Date of Supply and Invoicing date are the same.",null,null,null,null,null,"-","-"]
[null,null,null,null,null,null,null,null,null,null,null,null,null,null,null,null,"2017-01-01","2017-02-15"]
[null,null,null,"Enter Invoice Terms of Payment (TOP):",null,null,null,null,null,"days",{"$f":"IF(I14=\"\",\"\",\"Invoice Due Date:\")","v":""},{"$f":"IF(K14=\"\",\"\",I12+I14)","v":""},null,null,null,null,"2017-02-01","2017-03-15"]
[null,null,null,null,null,null,null,null,null,null,null,null,null,null,null,null,"2017-03-01","2017-04-15"]
[null,null,null,"Enter Maximum Extension Period (MEP):",null,null,null,null,null,"days",null,null,null,null,null,null,"2017-04-01","2017-05-15"]
[null,null,null,null,null,null,null,null,{"$f":"IF(I16=0,\"-\",I12+I14+I16)","v":"-"},null,{"$f":"IF(I18=\"-\",\"\",\"*Once a buyer enters a state of default, this has to be reported by the 15th of the following month.\")","v":""},null,null,null,null,null,"2017-05-01","2017-06-15"]
[null,null,null,"State of Default Reporting deadline:",null,null,null,null,{"$f":"VLOOKUP(I17,Q:R,2,TRUE)","v":"-"},null,null,null,null,null,null,null,"2017-06-01","2017-07-15"]
[null,null,null,null,null,null,null,null,null,null,null,null,null,null,null,null,"2017-07-01","2017-08-15"]
[null,null,null,"Claim Notification Period deadline:",null,null,null,null,{"$f":"IF(I16=0,\"-\",MAX(I12+I14+I16+90,I12+180))","v":"-"},null,{"$f":"IF(I20=\"-\",\"\",\"*Deadline to file a claim is 90 days from the expiration of the Maximum Extension Period or 180 days from Shipment, whichever is later.\")","v":""},null,null,null,null,null,"2017-08-01","2017-09-15"]
[null,null,null,null,null,null,null,null,null,"select debtor's country\nfrom the dropdown menu",null,null,null,null,null,null,"2017-09-01","2017-10-15"]
[null,null,null,"Select the debtor's country:",null,null,null,null,null,null,null,null,null,null,null,null,"2017-10-01","2017-11-15"]
[null,null,null,null,null,null,null,null,null,null,{"$f":"IF(I24=\"-\",\"\",\"*Your claim will be paid within 60 days from the expiration of the relevant Waiting Period after your complete submission is received. This settlement date is calculated as if the claim were processed on the last day (deadline).\")","v":""},null,null,null,null,null,"2017-11-01","2017-12-15"]
[null,null,null,"Estimated Claim Settlement Date:",null,null,null,null,{"$f":"IF(ISERROR(I20+J24+60),\"-\",I20+J24+60)","v":"-"},{"$f":"VLOOKUP(I22,Sheet1!H3:I243,2,FALSE)","v":{"$error":"#N/A"}},null,null,null,null,null,null,"2017-12-01","2018-01-15"]
[null,null,null,null,null,null,null,null,null,null,null,null,null,null,null,null,"2018-01-01","2018-02-15"]
[null,null,null,null,null,null,null,null,null,null,null,null,null,null,null,null,"2018-02-01","2018-03-15"]
[null,null,"If you have questions about your policy, please contact your servicing team",null,null,null,null,null,null,null,null,null,null,null,null,null,"2018-03-01","2018-04-15"]
[null,null,null,null,null,null,null,null,null,null,null,null,null,null,null,null,"2018-04-01","2018-05-15"]
[null,null,null,null,null,null,null,null,null,null,null,null,null,null,null,null,"2018-05-01","2018-06-15"]
[null,null,null,null,null,null,null,null,null,null,null,null,null,null,null,null,"2018-06-01","2018-07-15"]
[null,null,null,null,null,null,null,null,null,null,null,null,null,null,null,null,"2018-07-01","2018-08-15"]
[null,null,null,null,null,null,null,null,null,null,null,null,null,null,null,null,"2018-08-01","2018-09-15"]
[null,null,null,null,null,null,null,null,null,null,null,null,null,null,null,null,"2018-09-01","2018-10-15"]
[null,null,null,null,null,null,null,null,null,null,null,null,null,null,null,null,"2018-10-01","2018-11-15"]
[null,null,null,null,null,null,null,null,null,null,null,null,null,null,null,null,"2018-11-01","2018-12-15"]
[null,null,null,null,null,null,null,null,null,null,null,null,null,null,null,null,"2018-12-01","2019-01-15"]
[null,null,null,null,null,null,null,null,null,null,null,null,null,null,null,null,"2019-01-01","2019-02-15"]
[null,null,null,null,null,null,null,null,null,null,null,null,null,null,null,null,"2019-02-01","2019-03-15"]
[null,null,null,null,null,null,null,null,null,null,null,null,null,null,null,null,"2019-03-01","2019-04-15"]
[null,null,null,null,null,null,null,null,null,null,null,null,null,null,null,null,"2019-04-01","2019-05-15"]
[null,null,null,null,null,null,null,null,null,null,null,null,null,null,null,null,"2019-05-01","2019-06-15"]
[null,null,null,null,null,null,null,null,null,null,null,null,null,null,null,null,"2019-06-01","2019-07-15"]
[null,null,null,null,null,null,null,null,null,null,null,null,null,null,null,null,"2019-07-01","2019-08-15"]
[null,null,null,null,null,null,null,null,null,null,null,null,null,null,null,null,"2019-08-01","2019-09-15"]
[null,null,null,null,null,null,null,null,null,null,null,null,null,null,null,null,"2019-09-01","2019-10-15"]
[null,null,null,null,null,null,null,null,null,null,null,null,null,null,null,null,"2019-10-01","2019-11-15"]
[null,null,null,null,null,null,null,null,null,null,null,null,null,null,null,null,"2019-11-01","2019-12-15"]
[null,null,null,null,null,null,null,null,null,null,null,null,null,null,null,null,"2019-12-01","2020-01-15"]
[null,null,null,null,null,null,null,null,null,null,null,null,null,null,null,null,"2020-01-01","2020-02-15"]
[null,null,null,null,null,null,null,null,null,null,null,null,null,null,null,null,"2020-02-01","2020-03-15"]
[null,null,null,null,null,null,null,null,null,null,null,null,null,null,null,null,"2020-03-01","2020-04-15"]
[null,null,null,null,null,null,null,null,null,null,null,null,null,null,null,null,"2020-04-01","2020-05-15"]
[null,null,null,null,null,null,null,null,null,null,null,null,null,null,null,null,"2020-05-01","2020-06-15"]
[null,null,null,null,null,null,null,null,null,null,null,null,null,null,null,null,"2020-06-01","2020-07-15"]
[null,null,null,null,null,null,null,null,null,null,null,null,null,null,null,null,"2020-07-01","2020-08-15"]
[null,null,null,null,null,null,null,null,null,null,null,null,null,null,null,null,"2020-08-01","2020-09-15"]
[null,null,null,null,null,null,null,null,null,null,null,null,null,null,null,null,"2020-09-01","2020-10-15"]
[null,null,null,null,null,null,null,null,null,null,null,null,null,null,null,null,"2020-10-01","2020-11-15"]
[null,null,null,null,null,null,null,null,null,null,null,null,null,null,null,null,"2020-11-01","2020-12-15"]
[null,null,null,null,null,null,null,null,null,null,null,null,null,null,null,null,"2020-12-01","2021-01-15"]
[null,null,null,null,null,null,null,null,null,null,null,null,null,null,null,null,"2021-01-01","2021-02-15"]
[null,null,null,null,null,null,null,null,null,null,null,null,null,null,null,null,"2021-02-01","2021-03-15"]
[null,null,null,null,null,null,null,null,null,null,null,null,null,null,null,null,"2021-03-01","2021-04-15"]
[null,null,null,null,null,null,null,null,null,null,null,null,null,null,null,null,"2021-04-01","2021-05-15"]
[null,null,null,null,null,null,null,null,null,null,null,null,null,null,null,null,"2021-05-01","2021-06-15"]
[null,null,null,null,null,null,null,null,null,null,null,null,null,null,null,null,"2021-06-01","2021-07-15"]
[null,null,null,null,null,null,null,null,null,null,null,null,null,null,null,null,"2021-07-01","2021-08-15"]
[null,null,null,null,null,null,null,null,null,null,null,null,null,null,null,null,"2021-08-01","2021-09-15"]
[null,null,null,null,null,null,null,null,null,null,null,null,null,null,null,null,"2021-09-01","2021-10-15"]
[null,null,null,null,null,null,null,null,null,null,null,null,null,null,null,null,"2021-10-01","2021-11-15"]
[null,null,null,null,null,null,null,null,null,null,null,null,null,null,null,null,"2021-11-01","2021-12-15"]
[null,null,null,null,null,null,null,null,null,null,null,null,null,null,null,null,"2021-12-01","2022-01-15"]
[null,null,null,null,null,null,null,null,null,null,null,null,null,null,null,null,"2022-01-01","date range exceeded"]

{"sheet":"Sheet1","index":4,"n_rows":243,"n_cols":12,"rows_kept":243,"cut":false,"hidden":true,"merged":[]}
["updated feb 2018",null,null,null,null,null,null,"Country","WP",null,"TOS","MEP"]
[]
[null,null,null,null,null,null,null,"ALBANIA",360,null,15,15]
[null,null,null,null,null,null,null,"ALGERIA",270,null,30,30]
[null,null,null,null,null,null,null,"AMERICAN SAMOA ",120,null,45,45]
[null,null,null,null,null,null,null,"ANDORRA",90,null,60,60]
[null,null,null,null,null,null,null,"ANGOLA",360,null,75,75]
[null,null,null,null,null,null,null,"ANGUILLA  ",120,null,90,90]
[null,null,null,null,null,null,null,"ANTARTICA ",120,null,120,120]
[null,null,null,null,null,null,null,"ANTIGUA & BARBUDA",270]
[null,null,null,null,null,null,null,"ARGENTINA",270]
[null,null,null,null,null,null,null,"ARMENIA",360]
[null,null,null,null,null,null,null,"ARUBA",120]
[null,null,null,null,null,null,null,"Aust Pacific Is (see Christmas, Cocos & Norfolk Is)"]
[null,null,null,null,null,null,null,"AUSTRALIA",90]
[null,null,null,null,null,null,null,"AUSTRIA",90]
[null,null,null,null,null,null,null,"AZERBAIJAN",360]
[null,null,null,null,null,null,null,"BAHAMAS",120]
[null,null,null,null,null,null,null,"BAHRAIN",270]
[null,null,null,null,null,null,null,"BANGLADESH",360]
[null,null,null,null,null,null,null,"BARBADOS",270]
[null,null,null,null,null,null,null,"BELARUS",360]
[null,null,null,null,null,null,null,"BELGIUM",90]
[null,null,null,null,null,null,null,"BELIZE",360]
[null,null,null,null,null,null,null,"BENIN",270]
[null,null,null,null,null,null,null,"BERMUDA",120]
[null,null,null,null,null,null,null,"BES Islands  (Bonaire, ST Eustatius & Saba)",90]
[null,null,null,null,null,null,null,"BHUTAN",270]
[null,null,null,null,null,null,null,"BOLIVIA",360]
[null,null,null,null,null,null,null,"BOSNIA & HERCEGOVINA",360]
[null,null,null,null,null,null,null,"BOTSWANA",120]
[null,null,null,null,null,null,null,"BOUVET ISLAND",120]
[null,null,null,null,null,null,null,"BRAZIL",120]
[null,null,null,null,null,null,null,"BRITISH INDIAN OCEAN TERRITORY",120]
[null,null,null,null,null,null,null,"British Virgin Islands",120]
[null,null,null,null,null,null,null,"British Pacific Is   (See  Pitcairn Is)"]
[null,null,null,null,null,null,null,"BRUNEI",120]
[null,null,null,null,null,null,null,"BULGARIA",120]
[null,null,null,null,null,null,null,"BURKINA FASO",270]
[null,null,null,null,null,null,null,"Burma (Myanmar) - See policy detail for exceptions",360]
[null,null,null,null,null,null,null,"BURUNDI",360]
[null,null,null,null,null,null,null,"CAMBODIA",360]
[null,null,null,null,null,null,null,"CAMEROON",270]
[null,null,null,null,null,null,null,"CANADA",0]
[null,null,null,null,null,null,null,"CAPE VERDE ISLANDS",360]
[null,null,null,null,null,null,null,"CAYMAN ISLANDS",120]
[null,null,null,null,null,null,null,"CENTRAL AFRICAN REP",360]
[null,null,null,null,null,null,null,"CHAD",360]
[null,null,null,null,null,null,null,"CHILE",120]
[null,null,null,null,null,null,null,"CHINA",120]
[null,null,null,null,null,null,null,"CHRISTMAS ISLAND",120]
[null,null,null,null,null,null,null,"COCOS (KEELING) ISLANDS",120]
[null,null,null,null,null,null,null,"COLOMBIA",120]
[null,null,null,null,null,null,null,"COMORO ISLANDS",360]
[null,null,null,null,null,null,null,"CONGO (Democratic Rep of)",360]
[null,null,null,null,null,null,null,"CONGO (People's Rep of)",360]
[null,null,null,null,null,null,null,"COOK ISLANDS",270]
[null,null,null,null,null,null,null,"COSTA RICA",120]
[null,null,null,null,null,null,null,"Côte d'Ivoire (Ivory Coast)",270]
[null,null,null,null,null,null,null,"CROATIA",270]
[null,null,null,null,null,null,null,"CURACAO",270]
[null,null,null,null,null,null,null,"CYPRUS  ",120]
[null,null,null,null,null,null,null,"CZECH REPUBLIC",120]
[null,null,null,null,null,null,null,"DENMARK",90]
[null,null,null,null,null,null,null,"DJIBOUTI",360]
[null,null,null,null,null,null,null,"DOMINICA",270]
[null,null,null,null,null,null,null,"DOMINICAN REPUBLIC",120]
[null,null,null,null,null,null,null,"Dubai (See U.A.E)"]
[null,null,null,null,null,null,null,"ECUADOR",270]
[null,null,null,null,null,null,null,"EGYPT",270]
[null,null,null,null,null,null,null,"EL SALVADOR",120]
[null,null,null,null,null,null,null,"EQUATORIAL GUINEA",360]
[null,null,null,null,null,null,null,"ERITREA",360]
[null,null,null,null,null,null,null,"ESTONIA",120]
[null,null,null,null,null,null,null,"ETHIOPIA",360]
[null,null,null,null,null,null,null,"FALKLAND ISLANDS",120]
[null,null,null,null,null,null,null,"FAROE ISLANDS",120]
[null,null,null,null,null,null,null,"FIJI",360]
[null,null,null,null,null,null,null,"FINLAND",90]
[null,null,null,null,null,null,null,"FRANCE",90]
[null,null,null,null,null,null,null,"FRENCH GUIANA",90]
[null,null,null,null,null,null,null,"FRENCH POLYNESIA   (a)",120]
[null,null,null,null,null,null,null,"FRENCH SOUTHERN TERRITORY",120]
[null,null,null,null,null,null,null,"GABON",270]
[null,null,null,null,null,null,null,"GAMBIA",360]
[null,null,null,null,null,null,null,"GEORGIA",360]
[null,null,null,null,null,null,null,"GERMANY",90]
[null,null,null,null,null,null,null,"GHANA",120]
[null,null,null,null,null,null,null,"GIBRALTAR",120]
[null,null,null,null,null,null,null,"GREECE",120]
[null,null,null,null,null,null,null,"GREENLAND",120]
[null,null,null,null,null,null,null,"GRENADA",270]
[null,null,null,null,null,null,null,"GUADELOUPE (Incl French St Martin & St Barthelemy)",90]
[null,null,null,null,null,null,null,"GUAM",120]
[null,null,null,null,null,null,null,"GUATEMALA",120]
[null,null,null,null,null,null,null,"GUINEA (Rep of)",360]
[null,null,null,null,null,null,null,"GUINEA BISSAU (Rep of)",360]
[null,null,null,null,null,null,null,"GUYANA",270]
[null,null,null,null,null,null,null,"HAITI",360]
[null,null,null,null,null,null,null,"HEARD AND MCDONALD ISLANDS",120]
[null,null,null,null,null,null,null,"HONDURAS",270]
[null,null,null,null,null,null,null,"HONG KONG",120]
[null,null,null,null,null,null,null,"HUNGARY",120]
[null,null,null,null,null,null,null,"ICELAND",120]
[null,null,null,null,null,null,null,"INDIA",120]
[null,null,null,null,null,null,null,"INDONESIA",120]
[null,null,null,null,null,null,null,"IRELAND",120]
[null,null,null,null,null,null,null,"ISRAEL",120]
[null,null,null,null,null,null,null,"ITALY",120]
[null,null,null,null,null,null,null,"JAMAICA",360]
[null,null,null,null,null,null,null,"JAPAN",120]
[null,null,null,null,null,null,null,"JORDAN",120]
[null,null,null,null,null,null,null,"KAZAKHSTAN",360]
[null,null,null,null,null,null,null,"KENYA",270]
[null,null,null,null,null,null,null,"KIRIBATI",270]
[null,null,null,null,null,null,null,"KOREA, DEMO. PEOPLE'S R. (NORTH)"]
[null,null,null,null,null,null,null,"KOREA REPUBLIC OF (SOUTH)",120]
[null,null,null,null,null,null,null,"KUWAIT",120]
[null,null,null,null,null,null,null,"KYRGYZSTAN",360]
[null,null,null,null,null,null,null,"LAOS",360]
[null,null,null,null,null,null,null,"LATVIA",120]
[null,null,null,null,null,null,null,"Leeward Is (See Anguilla, Montserrat & BVI)"]
[null,null,null,null,null,null,null,"LEBANON",360]
[null,null,null,null,null,null,null,"LESOTHO",270]
[null,null,null,null,null,null,null,"LIBERIA",360]
[null,null,null,null,null,null,null,"LIBYA",360]
[null,null,null,null,null,null,null,"LIECHTENSTEIN",90]
[null,null,null,null,null,null,null,"LITHUANIA",120]
[null,null,null,null,null,null,null,"LUXEMBOURG",90]
[null,null,null,null,null,null,null,"MACAO",120]
[null,null,null,null,null,null,null,"MACEDONIA, FYR",360]
[null,null,null,null,null,null,null,"MADAGASCAR",360]
[null,null,null,null,null,null,null,"MALAWI",360]
[null,null,null,null,null,null,null,"MALAYSIA",120]
[null,null,null,null,null,null,null,"MALDIVES",360]
[null,null,null,null,null,null,null,"MALI",360]
[null,null,null,null,null,null,null,"MALTA",120]
[null,null,null,null,null,null,null,"MARSHALL ISLANDS",360]
[null,null,null,null,null,null,null,"MARTINIQUE",90]
[null,null,null,null,null,null,null,"MAURITANIA",360]
[null,null,null,null,null,null,null,"MAURITIUS",120]
[null,null,null,null,null,null,null,"MAYOTTE",120]
[null,null,null,null,null,null,null,"MEXICO",120]
[null,null,null,null,null,null,null,"MICRONESIA",270]
[null,null,null,null,null,null,null,"MOLDOVA",360]
[null,null,null,null,null,null,null,"MONACO",90]
[null,null,null,null,null,null,null,"MONGOLIA",360]
[null,null,null,null,null,null,null,"MONTENEGRO",360]
[null,null,null,null,null,null,null,"MONTSERRAT ",120]
[null,null,null,null,null,null,null,"MOROCCO",120]
[null,null,null,null,null,null,null,"MOZAMBIQUE",360]
[null,null,null,null,null,null,null,"MYANMAR (Burma) - Exception only validated by GRIC",360]
[null,null,null,null,null,null,null,"NAMIBIA",120]
[null,null,null,null,null,null,null,"NAURU",360]
[null,null,null,null,null,null,null,"NEPAL",360]
[null,null,null,null,null,null,null,"NETHERLANDS",90]
[null,null,null,null,null,null,null,"NEW CALEDONIA",120]
[null,null,null,null,null,null,null,"NEW ZEALAND",90]
[null,null,null,null,null,null,null,"NICARAGUA",360]
[null,null,null,null,null,null,null,"NIGERIA",360]
[null,null,null,null,null,null,null,"NIGER",360]
[null,null,null,null,null,null,null,"NIUE",120]
[null,null,null,null,null,null,null,"NORFOLK ISLAND",120]
[null,null,null,null,null,null,null,"NORTHERN MARIANA ISLANDS",120]
[null,null,null,null,null,null,null,"NORWAY",90]
[null,null,null,null,null,null,null,"OMAN",120]
[null,null,null,null,null,null,null,"PAKISTAN",360]
[null,null,null,null,null,null,null,"PALAU",270]
[null,null,null,null,null,null,null,"PANAMA",120]
[null,null,null,null,null,null,null,"PAPUA NEW GUINEA",360]
[null,null,null,null,null,null,null,"PARAGUAY",270]
[null,null,null,null,null,null,null,"PERU",120]
[null,null,null,null,null,null,null,"PHILIPPINES",120]
[null,null,null,null,null,null,null,"PITCAIRN ISLAND",120]
[null,null,null,null,null,null,null,"POLAND",120]
[null,null,null,null,null,null,null,"PORTUGAL (Includes Azores & Madeira)       ",120]
[null,null,null,null,null,null,null,"PUERTO RICO",90]
[null,null,null,null,null,null,null,"QATAR",120]
[null,null,null,null,null,null,null,"REUNION",90]
[null,null,null,null,null,null,null,"ROMANIA",120]
[null,null,null,null,null,null,null,"RUSSIA",270]
[null,null,null,null,null,null,null,"RWANDA",270]
[null,null,null,null,null,null,null,"SOUTH GEORGIA/SANDWICH ISLANDS",120]
[null,null,null,null,null,null,null,"SAMOA ",270]
[null,null,null,null,null,null,null,"SAN MARINO",90]
[null,null,null,null,null,null,null,"SAO TOME & PRINCIPE",270]
[null,null,null,null,null,null,null,"SAUDI ARABIA",120]
[null,null,null,null,null,null,null,"SENEGAL",270]
[null,null,null,null,null,null,null,"SERBIA ",360]
[null,null,null,null,null,null,null,"SEYCHELLES",360]
[null,null,null,null,null,null,null,"SIERRA LEONE",360]
[null,null,null,null,null,null,null,"SINGAPORE",120]
[null,null,null,null,null,null,null,"SLOVAKIA",120]
[null,null,null,null,null,null,null,"SLOVENIA",120]
[null,null,null,null,null,null,null,"SOLOMON ISLANDS",360]
[null,null,null,null,null,null,null,"SOUTH AFRICA",120]
[null,null,null,null,null,null,null,"SPAIN (INCLUDING CANARY ISLANDS)",120]
[null,null,null,null,null,null,null,"SRI LANKA",270]
[null,null,null,null,null,null,null,"ST. HELENA",120]
[null,null,null,null,null,null,null,"ST. KITTS & NEVIS",270]
[null,null,null,null,null,null,null,"ST MAARTEN (Dutch Side) ",270]
[null,null,null,null,null,null,null,"ST. LUCIA",270]
[null,null,null,null,null,null,null,"ST. PIERRE ET MIQUELON",120]
[null,null,null,null,null,null,null,"ST. VINCENT & THE GRENADINES",270]
[null,null,null,null,null,null,null,"SURINAM",360]
[null,null,null,null,null,null,null,"SVALBARD & JAN MAYEN",120]
[null,null,null,null,null,null,null,"SWAZILAND",270]
[null,null,null,null,null,null,null,"SWEDEN",90]
[null,null,null,null,null,null,null,"SWITZERLAND",90]
[null,null,null,null,null,null,null,"TAJIKISTAN",360]
[null,null,null,null,null,null,null,"TAIWAN",120]
[null,null,null,null,null,null,null,"TANZANIA",270]
[null,null,null,null,null,null,null,"TIMOR LESTE",360]
[null,null,null,null,null,null,null,"THAILAND",120]
[null,null,null,null,null,null,null,"TOGO",360]
[null,null,null,null,null,null,null,"TOKELAU",120]
[null,null,null,null,null,null,null,"TONGA",360]
[null,null,null,null,null,null,null,"TRINIDAD & TOBAGO",120]
[null,null,null,null,null,null,null,"TUNISIA",120]
[null,null,null,null,null,null,null,"TURKEY",270]
[null,null,null,null,null,null,null,"TURKMENISTAN",360]
[null,null,null,null,null,null,null,"TURKS & CAICOS",120]
[null,null,null,null,null,null,null,"TUVALU",270]
[null,null,null,null,null,null,null,"UNITED ARAB EMIRATES (Abu Dhabi)     ",120]
[null,null,null,null,null,null,null,"US VIRGIN ISLANDS (St. Thomas, St Criox, St Johns)",120]
[null,null,null,null,null,null,null,"U.S. MINOR OUTLYING ISLANDS",120]
[null,null,null,null,null,null,null,"U.S. Pacific Is (see Nth Mariana Is & US Minor Outlying Is)   "]
[null,null,null,null,null,null,null,"U.S.A.",0]
[null,null,null,null,null,null,null,"UGANDA",270]
[null,null,null,null,null,null,null,"UKRAINE",360]
[null,null,null,null,null,null,null,"UNITED KINGDOM (Includes Channel Island, Isle of man & Ascension Island)   g",90]
[null,null,null,null,null,null,null,"URUGUAY",120]
[null,null,null,null,null,null,null,"UZBEKISTAN",360]
[null,null,null,null,null,null,null,"VANUATU",270]
[null,null,null,null,null,null,null,"VATICAN CITY (HOLY SEE)",90]
[null,null,null,null,null,null,null,"VENEZUELA",360]
[null,null,null,null,null,null,null,"VIETNAM",270]
[null,null,null,null,null,null,null,"WALLIS & FUTUNA",120]
[null,null,null,null,null,null,null,"Winward Is (See Dominica, St. Lucia, St Vincent & Grenedines)"]
[null,null,null,null,null,null,null,"YEMEN",360]
[null,null,null,null,null,null,null,"Yugoslavia (See Serbia & Montenegro)"]
[null,null,null,null,null,null,null,"ZAMBIA",270]
[null,null,null,null,null,null,null," - ",0]